{"text_format":"1","workbook":"xlsx","n_sheets":26,"sheets":["Cover","A-Z","Nobles Hospital","Ramsey Cottage Hosipital","Emergency Services","Hospitals","Noble's Hospital","Ramsey Cottage Hospital","Doctors","Dentists","Pharmacy","Opticians","Audiology","Mental Health","Sexual Health","Family Planning & Pregnancy","Therapy Services","Speach & Language Therapy","Children and Family","Services for Older People","Learning Disability Service ","Adult Social Care Support","Care Services","Community","Patient Transfers","Screening"],"not_rendered":{"charts":0,"images":217,"macros":1,"external_links":0,"defined_names":187,"comments":0,"pivot_tables":0},"unopened":[],"bounds":{"document_bytes":16777216,"sheet_cells":100000,"rows_first":2000,"rows_last":500,"rows_between":2000,"halvings":0,"cell_chars":16384,"cell_head_chars":4096},"cells_cut":0,"cells_raw":0,"read":"whole","date_system":"1900"}

{"sheet":"Cover","index":0,"n_rows":282,"n_cols":11,"rows_kept":282,"cut":false,"hidden":false,"merged":[]}
[null,null,""]
[]
[]
[]
[]
[]
[]
["Directory of Services"]
[]
[]
[]
[]
[]
[]
[]
[]
[]
[]
[]
[]
[]
[]
[]
[]
[]
[]
[]
[]
[]
[]
[]
[]
[null,null,null,null,null,null,null,null,null,null,"Click here for Treasury Social Security website"]
[]
[]
[]
[]
[]
[]
["A-Z"]
["65 Woodbourne Road"]
["A"]
["Adult Hearing Aid Service"]
["Adult Hearing Service"]
["Air Ambulance"]
["Ambulance and Paramedic"]
["Anticoagulation Clinic"]
["Audiology (hearing)"]
["Audiology Main Clinic"]
["Avondale Dental Practice"]
["B"]
["Ballasalla Medical Centre"]
["Blood Clinic"]
["Boots Opticians Professional Services Ltd"]
["Boots The Chemist"]
["Bowel Screening"]
["C"]
["Cancer Screening"]
["Cardiac Services"]
["Castle Pharmacy, Castletown"]
["Castletown Medical Centre"]
["Central Community Health Centre\n"]
["Cervical Screening"]
["Child and Adolescent Mental Health Services (CAMHS)"]
["Children's Audiology (Hearing)"]
["Clear Chemist"]
["Clear Pharmacy"]
["Clear Pharmacy, Port Erin"]
["Clear Pharmacy, Port St Mary"]
["Community Dental Service"]
["Community Health"]
["Community Mental Health "]
["Community Paediatrics"]
["Community Safeguarding"]
["Community Therapy Services"]
["Community Wellbeing Service"]
["Continence Service"]
["Corlett Optometry"]
["Costain Pharmacy, Ballasalla"]
["Cowley  Pharmacy"]
["D"]
["Dentists"]
["Diabetes Centre"]
["Dietetics"]
["District Nursing"]
["Doctors"]
["Drug and Alcohol Team (DAT)"]
["E"]
["Emergency Dentist"]
["Emergency Services"]
["Endoscopy Unit"]
["F"]
["Family Planning"]
["Finch Hill Health Centre"]
["G"]
["Gastroenterology "]
["Generic Adult Team"]
["Genito Urinary Medicine (GUM)"]
["Gillian Sheard (Optometrists) Ltd"]
["Grove Mount Dental Practice"]
["GUM Clinic"]
["Gynaecology (women's health)"]
["H"]
["Hailwood Medical Centre"]
["Health Visiting Service\n"]
["Health Visitor for Vulnerable Adults"]
["Heart Failure Service"]
["Hamersley's Pharmacy"]
["Holmes and Davidson Opticians"]
["HPV Vaccinations"]
["I"]
["J"]
["Jane Crookall Maternity Unit"]
["Jurby Health Centre"]
["K"]
["Karson's Pharmacy"]
["Kensington Health Centre"]
["Kinrade’s Pharmacy"]
["L"]
["Laxey Health Centre"]
["Laxey Opticians"]
["Learning Disability Day services"]
["Learning Disability Residential Services"]
["Learning Disability Safeguarding Service "]
["Learning Disability Services"]
["Learning Disability Speech and Language Therapy"]
["Lloyds Pharmacy, Anagh Coar"]
["Lloyds Pharmacy, Castletown"]
["Lloyds Pharmacy, Hailwood Court Governors' Hill"]
["Lloyds Pharmacy, Port Erin"]
["Lloyds Pharmacy, Ramsey"]
["Lloyds Pharmacy, Shoprite Ramsey"]
["Lloyds Pharmacy, Shoprite Victoria Road"]
["Lloyds Pharmacy, St Paul's Square"]
["Lloyds Pharmacy, Village Walk Onchan"]
["Lloyds Pharmacy, Woodbourne Road Douglas"]
["Local Services for Mental Health"]
["Long Term Conditions Co-ordinators (LTCC)"]
["Lung Cancer Specialist Service"]
["M"]
["MacMillan Cancer Information & Support"]
["Manx Emergency Doctors (MEDS)"]
["Maxillofacial/Oral Surgery and Orthodontics"]
["Mental Health Acute Inpatient Services"]
["Mental Health"]
["Mental Health Crisis Response Home Treatment Team (CRHTT)"]
["Mental Health, Community Wellbeing Service"]
["Mental Health, Drug and Alcohol Team (DAT)"]
["N"]
["Neonatal Services"]
["Neurology Service"]
["Newby and Padley Opticians Onchan"]
["Newby and Padley Opticians Peel"]
["Newby and Padley Opticians Port Erin"]
["Nobles Accident & Emergency (AED)"]
["Noble's Blood Clinic"]
["Noble's Cardiac Services"]
["Noble's Diabetes Centre"]
["Noble's Endoscopy Unit"]
["Noble's Falls & Fragility Service "]
["Noble's Fracture/Plaster Clinic"]
["Noble's Gastroenterology "]
["Noble's Genito Urinary Medcine (GUM)"]
["Noble's Gynaecology (women's health)"]
["Noble's Haematology Specialist Service "]
["Noble's Heart Failure Service"]
["Nobles Hospital"]
["Noble's Inpatient Services"]
["Noble's Lung Cancer Specialist Service"]
["Noble's Maxillofacial/Oral Surgery and Orthodontics"]
["Noble's Neurology Service"]
["Noble's Nutrition and Dietetics"]
["Noble's Occupational Therapy"]
["Noble's Oncology Service"]
["Noble's Outpatient Physiotherapy"]
["Noble's Outpatient Services"]
["Noble's Paediatrics (Children)"]
["Noble's Patient Transfers"]
["Noble's Radiology Services"]
["Noble's Renal Unit"]
["Noble's Respiratory Services"]
["Noble's Rheumatology Services"]
["Noble's Ward 1 - Male Surgical"]
["Noble's Ward 10 - Jane Crookall Maternity Unit "]
["Noble's Ward 11 - Trauma Ward"]
["Noble's Ward 12 - Orthopaedic Ward"]
["Noble's Ward 14 - Day Procedures Suite"]
["Noble's Ward 16 - Neonatal"]
["Noble's Ward 17 - Intensive Care Unit (ICU)"]
["Noble's Ward 18 - Coronary Care Unit"]
["Noble's Ward 19 - Private Patients"]
["Noble's Ward 2 - Female Surgical"]
["Noble's Ward 3 - Children's Ward"]
["Noble's Ward 4 - Gynaecology Ward"]
["Noble's Ward 5 - Acute Medical Ward"]
["Noble's Ward 6 - Acute Medical unit (AMU)"]
["Noble's Ward 7 - Stroke and TIA"]
["Noble's Ward 8 - Acute Medical Ward"]
["Noble's Ward 9 - Acute Medical Ward"]
["Nurse Co-ordinators for Children with Complex Needs (NCCCN)"]
["Nutrition and Dietetics"]
["O"]
["Occupational Therapy"]
["Older Peoples Services, Day Centres"]
["Older Peoples Services, Home Care Service"]
["Older Peoples Services, Independent Living Centre"]
["Older Peoples Services, Reablement"]
["Older Persons Mental Health Services (OPMHS)"]
["Older Peoples Services, Dementia Care and Support Services"]
["Older Peoples Services, Residential Care"]
["Older Peoples Services, Community Social Work Team"]
["Oncology Service"]
["Opticians"]
["Outpatient Appointments Reception"]
["Outpatient Physiotherapy"]
["P"]
["Palatine Group Practice"]
["Parkinson's Disease Specialist Nurse"]
["Patricia Wild Opticians"]
["Peel Medical Centre"]
["Pharmacies"]
["Physiotherapy"]
["Podiatry Service"]
["Port Erin Dental Practice "]
["Promenade Medical Centre"]
["Q"]
["R"]
["Ramsey & District Cottage Hospital"]
["Ramsey Dietetics"]
["Ramsey Group Practice"]
["Ramsey Inpatient Services"]
["Ramsey Minor Incident Unit (MIU)"]
["Ramsey NHS Dental"]
["Ramsey Outpatient Appointments"]
["Ramsey Phlebotomy & Anticoagulation Services"]
["Ramsey Physiotherapy"]
["Ramsey Renal Dialysis"]
["Ramsey Social Worker Services"]
["Ramsey Wound Management"]
["Ramsey X-Ray Services"]
["Ramsey Health Visitor Liaison Service"]
["Rapid Community Reablement Team"]
["Ravat Ray Dental Care"]
["Regent Dental Care"]
["Renal Unit"]
["Roldan's Chemist"]
["S"]
["Sadler and Vanderplank Opticians"]
["Safeguarding Service, Adult Protection"]
["Safeguarding Service, Child Protection"]
["School Nursing "]
["Services for Older People"]
["Sexual Health Services"]
["Smile Care (IOM) Limited"]
["Snaefell Surgery"]
["Southern Group Practice"]
["Specsavers (Isle of Man) Ltd"]
["Speech and Language Child Services"]
["Speech and Language Adult Services"]
["Speech and Language Learning Disability Services"]
["Speech and Language Therapy"]
["T"]
["The Square Dental Practice"]
["The Tracey Bell Clinic "]
["The Village Pharmacy"]
["Therapy Service (Children’s and Adults) "]
["Thie Rosien Dental Practice"]
["U"]
["V"]
["Village Walk Health Centre"]
["W"]
["Westview Dental Practice"]
["Wellbeing Partnerships"]
["X"]
["Y"]
["Z"]
[]
["Carers"]
["Cancer Screening"]
["Breast Screening"]
["Bowel Screening"]
["Cervical Screening"]

{"sheet":"A-Z","index":1,"n_rows":350,"n_cols":4,"rows_kept":350,"cut":false,"hidden":false,"merged":[]}
[null,null,"",""]
[]
[]
[]
[]
[]
[]
[]
[null,"Directory of Services - A-Z"]
[]
[]
[]
[]
[]
[]
[null,"A-Z"]
[]
[]
[null,"65 Woodbourne Road"]
[null,"A"]
[null,"Accident and Emergency Department, Noble's"]
[null,"Acute Medical Unit (AMU), Ward 6 -  Nobles"]
[null,"Acute Medical Ward, Ward 5 - Nobles"]
[null,"Acute Medical Ward, Ward 8 - Nobles"]
[null,"Acute Medical Ward, Ward 9 - Nobles"]
[null,"Adult Hearing Aid Service"]
[null,"Adult Hearing Service"]
[null,"Air Ambulance"]
[null,"Ambulance and Paramedic"]
[null,"Anticoagulation Clinic, Noble's"]
[null,"Audiology (hearing)"]
[null,"Audiology (Hearing), Children's"]
[null,"Audiology Clinic, Adults"]
[null,"Avondale Dental Practice"]
[null,"B"]
[null,"Ballasalla Medical Centre"]
[null,"Blood Clinic, Noble's"]
[null,"Boots Opticians Professional Services Ltd"]
[null,"Boots The Chemist"]
[null,"Bowel Screening"]
[null,"Breast Screening"]
[null,"C"]
[null,"Cancer Information & Support, Macmillan"]
[null,"Cancer Screening"]
[null,"Cardiac Services, Noble's"]
[null,"Carers"]
[null,"Castle Pharmacy, Castletown"]
[null,"Castletown Medical Centre"]
[null,"Central Community Health Centre\n"]
[null,"Cervical Screening"]
[null,"Child and Adolescent Mental Health Services (CHAMS)"]
[null,"Children's Audiology (Hearing)"]
[null,"Children's Ward, Ward 3 -  Nobles"]
[null,"Clear Chemist"]
[null,"Clear Pharmacy"]
[null,"Community Dental Service"]
[null,"Community Mental Health "]
[null,"Community Paediatrics"]
[null,"Community Paediatrics"]
[null,"Community Safeguarding"]
[null,"Community Services, Community Dental Service"]
[null,"Community Services, Community Paediatrics"]
[null,"Community Services, Continence Service"]
[null,"Community Services, District Nursing"]
[null,"Community Services, Family Planning"]
[null,"Community Services, Health Visiting Service"]
[null,"Community Services, Health Visitor for Vulnerable Adults"]
[null,"Community Services, Long Term Conditions Co-ordinators"]
[null,"Community Services, Nurse Co-ordinator for Children with Complex Needs"]
[null,"Community Services, Parkinson’s Disease Specialist Nurse"]
[null,"Community Services, Podiatry Service"]
[null,"Community Services, Safeguarding Service"]
[null,"Community Services, School Nursing Service"]
[null,"Community Services, Speech and Language Therapy Service"]
[null,"Community Services, Therapy Service (Children’s and Adults) "]
[null,"Community Therapy Services"]
[null,"Community Wellbeing Service"]
[null,"Continence Service"]
[null,"Corlett Optometry"]
[null,"Coronary Care Unit (CCU), Ward 18 - Nobles"]
[null,"Costain Pharmacy, Ballasalla"]
[null,"Cowley  Pharmacy"]
[null,"Crisis Response Home Treatment (CRHTT)\n"]
[null,"D"]
[null,"Day Procedures Suite, Ward 14 - Nobles"]
[null,"Dentists"]
[null,"Dentists, Emergency "]
[null,"Diabetes Centre, Noble's"]
[null,"Dietetics (Diet)"]
[null,"District Nursing"]
[null,"Doctors"]
[null,"Drug and Alcohol Team (DAT)"]
[null,"E"]
[null,"Emergency Dentist"]
[null,"Emergency Department, Nobles "]
[null,"Emergency Doctors, (MEDS)"]
[null,"Emergency Services"]
[null,"Endoscopy Unit"]
[null,"F"]
[null,"Falls & Fragility Service "]
[null,"Family Planning"]
[null,"Female Surgical, Ward 2 -  Nobles"]
[null,"Finch Hill Health Centre"]
[null,"Fracture/Plaster Clinic, Noble's"]
[null,"G"]
[null,"Gastroenterology , Nobles"]
[null,"Genito Urinary Medicine (GUM), Noble's"]
[null,"Gillian Sheard (Optometrists) Ltd"]
[null,"Grove Mount Dental Practice"]
[null,"GUM Clinic"]
[null,"Gynaecology (women's health), Nobles"]
[null,"Gynaecology Ward, Ward 4 - Nobles"]
[null,"H"]
[null,"Haematology Specialist Service, Nobles"]
[null,"Hailwood Medical Centre"]
[null,"Hamersley's Pharmacy"]
[null,"Health Visiting Service"]
[null,"Health Visiting Service\n"]
[null,"Health Visitor for Vulnerable Adults"]
[null,"Health Visitor for Vulnerable Adults"]
[null,"Health Visitor for Vulnerable Adults"]
[null,"Health Visitor Service"]
[null,"Hearing (Audiology) Services"]
[null,"Heart Failure Service"]
[null,"Hemensleys Pharmacy"]
[null,"Holmes and Davidson Opticians"]
[null,"Hospice"]
[null,"Hospital, Nobles"]
[null,"Hospital, Ramsey & District Cottage"]
[null,"HPV Vaccinations"]
[null,"I"]
[null,"Inpatient Admissions, Nobles"]
[null,"Intensive Care Unit (ICU), Ward 17 - Nobles"]
[null,"J"]
[null,"Jane Crookall Maternity Unit"]
[null,"Jurby Health Centre"]
[null,"K"]
[null,"Karson's Pharmacy"]
[null,"Kensington Health Centre"]
[null,"Kinrade’s Pharmacy"]
[null,"L"]
[null,"Laxey Health Centre"]
[null,"Laxey Opticians"]
[null,"Learning Disability Day services"]
[null,"Learning Disability Residential Services"]
[null,"Learning Disability Safeguarding Service "]
[null,"Learning Disability Services"]
[null,"Learning Disability Speech and Language Therapy"]
[null,"Lloyds Pharmacy, Anagh Coar"]
[null,"Lloyds Pharmacy, Castletown"]
[null,"Lloyds Pharmacy, Hailwood Court Governors' Hill"]
[null,"Lloyds Pharmacy, Port Erin"]
[null,"Lloyds Pharmacy, Shoprite Ramsey"]
[null,"Lloyds Pharmacy, Shoprite Victoria Road"]
[null,"Lloyds Pharmacy, St Paul's Square"]
[null,"Lloyds Pharmacy, Village Walk Onchan"]
[null,"Lloyds Pharmacy, Woodbourne Road Douglas"]
[null,"Local Services for Mental Health"]
[null,"Long Term Conditions Co-ordinators (LTCC)"]
[null,"Lung Cancer Specialist Service"]
[null,"M"]
[null,"MacMillan Cancer Information & Support"]
[null,"Male Surgical, Ward 1 - Nobles"]
[null,"Manx Emergency Doctors (MEDS)"]
[null,"Maxillofacial/Oral Surgery and Orthodontics"]
[null,"Mental Health Acute Inpatient Services"]
[null,"Mental Health Crisis Response Home Treatment Team (CRHTT)"]
[null,"Mental Health Services"]
[null,"Mental Health, Child and Adolescent (CHAMS)"]
[null,"Mental Health, Community"]
[null,"Mental Health, Community Wellbeing Service"]
[null,"Mental Health, Community Wellbeing Service"]
[null,"Mental Health, Drug and Alcohol Team (DAT)"]
[null,"Mental Health, Older Persons Mental Health Service (OPMHS)\n"]
[null,"Minor Incidents Unit, Ramsey"]
[null,"N"]
[null,"Neonatal , Ward 16 - Nobles"]
[null,"Neonatal Services"]
[null,"Neurology Service"]
[null,"Newby and Padley Opticians Onchan"]
[null,"Newby and Padley Opticians Peel"]
[null,"Newby and Padley Opticians Port Erin"]
[null,"Nobles Accident & Emergency (AED)"]
[null,"Noble's Ward 14 - Day Procedures Suite"]
[null,"Nobles, Accident and Emergency Department"]
[null,"Nobles, Anticoagulation Clinic"]
[null,"Noble's, Blood Clinic"]
[null,"Noble's, Cardiac Services"]
[null,"Nobles, Day Procedure Suite"]
[null,"Noble's, Diabetes Centre"]
[null,"Noble's, Endoscopy Unit"]
[null,"Noble's, Falls & Fragility Service "]
[null,"Noble's, Fracture/Plaster Clinic"]
[null,"Noble's, Gastroenterology "]
[null,"Noble's, Genito Urinary Medcine (GUM)"]
[null,"Noble's, Gynaecology (women's health)"]
[null,"Noble's, Haematology Specialist Service "]
[null,"Noble's, Heart Failure Service"]
[null,"Nobles, Hospital"]
[null,"Noble's, Hospital Chapel Services"]
[null,"Noble's, Inpatient Services"]
[null,"Nobles, Intensive Care Unit"]
[null,"Noble's, Jane Crookall Maternity Unit\n"]
[null,"Noble's, Lung Cancer Specialist Service"]
[null,"Noble's, Maxillofacial/Oral Surgery and Orthodontics"]
[null,"Noble's, Neonatal Services\n"]
[null,"Noble's, Neurology Service"]
[null,"Noble's, Nutrition and Dietetics"]
[null,"Noble's, Occupational Therapy"]
[null,"Noble's, Oncology Service"]
[null,"Noble's, Outpatient Physiotherapy"]
[null,"Noble's, Outpatient Services"]
[null,"Noble's, Paediatrics (Children)"]
[null,"Noble's, Pathology Services"]
[null,"Noble's, Patient Transfers"]
[null,"Noble's, Pharmacy"]
[null,"Noble's, Radiology Services"]
[null,"Noble's, Renal Unit"]
[null,"Noble's, Respiratory Services"]
[null,"Noble's, Rheumatology Services"]
[null,"Noble's, Rheumatology Specialist Service"]
[null,"Noble's, Stroke Specialist Service"]
[null,"Noble's, Ward 1 - Male Surgical"]
[null,"Noble's, Ward 10 - Jane Crookall Maternity Unit "]
[null,"Noble's, Ward 11 - Trauma Ward"]
[null,"Noble's, Ward 12 - Orthopaedic Ward"]
[null,"Nobles, Ward 14 - Day Procedures Suite"]
[null,"Noble's, Ward 16 - Neonatal"]
[null,"Noble's, Ward 17 - Intensive Care Unit (ICU)"]
[null,"Noble's, Ward 18 - Coronary Care Unit"]
[null,"Noble's, Ward 19 - Private Patients"]
[null,"Noble's, Ward 2 - Female Surgical"]
[null,"Noble's, Ward 3 - Children's Ward"]
[null,"Noble's, Ward 4 - Gynaecology Ward"]
[null,"Noble's, Ward 5 - Acute Medical Ward"]
[null,"Noble's, Ward 6 - Acute Medical unit (AMU)"]
[null,"Noble's, Ward 7 - Stroke and TIA"]
[null,"Noble's, Ward 8 - Acute Medical Ward"]
[null,"Noble's, Ward 9 - Acute Medical Ward"]
[null,"Nurse Co-ordinators for Children with Complex Needs (NCCCN)"]
[null,"Nutrition and Dietetics"]
[null,"O"]
[null,"Occupational Therapy"]
[null,"Older Peoples Services, Day Centres"]
[null,"Older Peoples Services, Dementia Services"]
[null,"Older Peoples Services, Elderly Mentally Infirm"]
[null,"Older Peoples Services, Home Care Service"]
[null,"Older Peoples Services, Independent Living Centre"]
[null,"Older Peoples Services, Reablement"]
[null,"Older Peoples Services, Residential Care"]
[null,"Older Persons Mental Health Services (OPMHS)"]
[null,"Oncology Service, Noble's"]
[null,"Opticians"]
[null,"Orthopaedic Ward, Ward 12 - Nobles"]
[null,"Outpatient Physiotherapy, Noble's"]
[null,"Outpatient Services, Nobles"]
[null,"P"]
[null,"Paediatrics (Children), Noble's"]
[null,"Palatine Group Practice"]
[null,"Paramedics & Ambulance"]
[null,"Parkinson's Disease Specialist Nurse"]
[null,"Patient Transfers"]
[null,"Patricia Wild Opticians"]
[null,"Peel Medical Centre"]
[null,"Pharmacies"]
[null,"Physiotherapy"]
[null,"Podiatry Service"]
[null,"Port Erin Dental Practice "]
[null,"Private Patients, Ward 19 - Nobles"]
[null,"Promenade Medical Centre"]
[null,"Q"]
[null,"R"]
[null,"Radiology Services, Noble's"]
[null,"Ramsey & District Cottage Hospital"]
[null,"Ramsey Dietetics"]
[null,"Ramsey Group Practice"]
[null,"Ramsey Health Visitor Liaison Service"]
[null,"Ramsey Inpatient Services"]
[null,"Ramsey Minor Incident Unit (MIU)"]
[null,"Ramsey NHS Dental"]
[null,"Ramsey Outpatient Appointments"]
[null,"Ramsey Phlebotomy & Anticoagulation Services"]
[null,"Ramsey Physiotherapy"]
[null,"Ramsey Renal Dialysis"]
[null,"Ramsey Social Worker Services"]
[null,"Ramsey Wound Management"]
[null,"Ramsey X-Ray Services"]
[null,"Rapid Community Reablement Team"]
[null,"Ravat Ray Dental Care"]
[null,"Regent Dental Care"]
[null,"Renal Unit"]
[null,"Respiratory Services, Noble's"]
[null,"Rheumatology Services, Noble's"]
[null,"Roldan's Chemist"]
[null,"S"]
[null,"Sadler and Vanderplank Opticians"]
[null,"Safeguarding Service, Adult Protection"]
[null,"Safeguarding Service, Children"]
[null,"School Nursing "]
[null,"Screening, Cancer"]
[null,"Services for Older People"]
[null,"Sexual Health Services"]
[null,"Sexual Health, Family Planning"]
[null,"Sexual Health, GUM Clinic"]
[null,"Sexual Health, HPV Vaccinations\n"]
[null,"Smile Care (IOM) Limited"]
[null,"Snaefell Surgery"]
[null,"Southern Group Practice"]
[null,"Specsavers (Isle of Man) Ltd"]
[null,"Speech and Language Adult Services"]
[null,"Speech and Language Child Services"]
[null,"Speech and Language Learning Disability Services"]
[null,"Speech and Language Therapy"]
[null,"Stroke and TIA, Ward 7 - Nobles"]
[null,"Stroke Specialist Service"]
[null,"T"]
[null,"The Square Dental Practice"]
[null,"The Tracey Bell Clinic "]
[null,"The Village Pharmacy"]
[null,"Therapy Service (Children’s and Adults) "]
[null,"Thie Bee Coffee Shop"]
[null,"Thie Rosien Dental Practice"]
[null,"Transfer of Care"]
[null,"Trauma Ward, Ward 11 - Nobles"]
[null,"U"]
[null,"V"]
[null,"Village Walk Health Centre"]
[null,"W"]
[null,"Ward 1 - Male Surgical, Nobles"]
[null,"Ward 10 - Jane Crookall Maternity Unit, Nobles"]
[null,"Ward 11 - Trauma Ward, Nobles"]
[null,"Ward 12 - Orthopaedic Ward, Nobles"]
[null,"Ward 14 - Day Procedures Suite, Nobles"]
[null,"Ward 16 - Neonatal , Nobles"]
[null,"Ward 17 - Intensive Care Unit (ICU), Nobles"]
[null,"Ward 18 - Coronary Care Unit (CCU), Nobles"]
[null,"Ward 19 - Private Patients, Nobles"]
[null,"Ward 2 - Female Surgical, Nobles"]
[null,"Ward 3 - Children's Ward, Nobles"]
[null,"Ward 4 - Gynaecology Ward, Nobles"]
[null,"Ward 5 - Acute Medical Ward, Nobles"]
[null,"Ward 6 - Acute Medical Unit (AMU), Nobles"]
[null,"Ward 7 - Stroke and TIA, Nobles"]
[null,"Ward 8 - Acute Medical Ward, Nobles"]
[null,"Ward 9 - Acute Medical Ward, Nobles"]
[null,"Wellbeing Partnerships"]
[null,"Westview Dental Practice"]
[null,"X"]
[null,"Y"]
[null,"Z"]

{"sheet":"Nobles Hospital","index":2,"n_rows":95,"n_cols":7,"rows_kept":95,"cut":false,"hidden":true,"merged":[[35,5,37,5],[39,5,40,5],[24,5,25,5]]}
["Nobles Hospital"]
[]
["Nobles Hospital"]
["Strang"]
["Braddan"]
["Isle of Man"]
["IM4 4RJ"]
["Telephone:+44 1624 650000 (general enquiries 24 hour line, all calls to this number are recorded)"]
["Email: hospital.nobles@gov.im "]
["Web Link"]
[]
[]
[]
[]
[]
["Service Area","What services we can provide","Contact","Opening Times","Any services we don't provide","Other Information","Gov.im website link"]
[]
[]
[]
["Emergency Department",null,{"$f":"\"+44 1624 650040\"","v":"+44 1624 650040"}]
["Cardiac Services","Out of hours and emergency cardic services",{"$f":"\"+44 1624 650140\"","v":"+44 1624 650140"},null,null,"In an emergency please call 999"]
[]
[]
["Outpatient Services",null,{"$f":"\"+44 1624 650103\"","v":"+44 1624 650103"}]
["Cardiac Services ","General Cardiology Clinics",{"$f":"\"+44 1624 650117\"","v":"+44 1624 650117"},null,null,"The main tertiary centre for cardiac care is Liverpool Heart & Chest Hospital (LHCH) "]
[null,"Rapid Access chest Pain Clinics"]
[null,"Rapid access of patients with suspicious heart failure or arrhytmias",null,null,null,"www.lhch.nhs.uk"]
["Heart Failure Services","Heart Failure Clincs",{"$f":"\"+44 1624 650148\"","v":"+44 1624 650148"},"Monday - Friday 8.30am - 5.00pm (excluding bank holidays)",null,"Appointment Only"]
[null,"Heart Failure Nursing",null,"Call between 9.00am - 5.00pm"]
["Diabetes Centre","Diabetic Clinics",{"$f":"\"+44 1624 650865\"","v":"+44 1624 650865"},"Monday - Thursday 8.30am - 4.30pm",null,"Appointment Only"]
[null,null,null,"Friday 8.30am - 3.00pm"]
[null,"Diabetes Nursing",{"$f":"\"+44 1624 650860\"","v":"+44 1624 650860"},"Call between 9.00am - 4.00pm",null,"Via Telephone"]
[null,"Podiatry appointments/general enquiries",{"$f":"\"+44 1624 642652 / 642656\"","v":"+44 1624 642652 / 642656"}]
["Anticoagulation Clinic","Nurse Led Clinics",{"$f":"\"+44 1624 650643\"","v":"+44 1624 650643"}]
["Blood Clinic",null,{"$f":"\"+44 1624 650415\"","v":"+44 1624 650415"},"Monday - Thursday 8.00am - 4.00pm",null,"Appointment Only"]
[null,null,null,"Friday 8.30am - 1.00pm",null,"Please remember to bring your blood request forms or the Phlebotomists will be unable to take your blood"]
[null,null,null,"Closed bank holidays"]
[]
["Genito Urinary Medicine (GUM)","Sexual heath clinics which provide;",{"$f":"\"+44 1624 650710 / 650577\"","v":"+44 1624 650710 / 650577"},"Monday 1.45pm - 4.15pm",null,"Appointment Only"]
[null,"Free testing",null,"Tuesday 1.45pm - 4.15pm and 6.00pm to 7.30pm",null,"All calls are treated in strict confidence"]
[null,"Advice and support",null,"Wednesday 1.45pm - 4.15pm"]
[null,"Free treatment and onward care for all condition including HIV",null,"Thursday 9am - 12noon"]
[null,"Free pregnancy testing",null,"Friday 9am - 12noon and 1.45pm - 4.15pm"]
[null,"Emergency contraception"]
[null,"Healthcare for victims of sexual assault"]
[null,"PESE (post exposure prophylaxis following sexual exposeure) for HIV"]
["Outpatient Pysiotherapy",null,{"$f":"\"+44 1624 650\"","v":"+44 1624 650"}]
["Respiratory Services","General Respiratory Clinic",{"$f":"\"+44 1624 650103\"","v":"+44 1624 650103"},"Tuesday 2-5pm and Wednesday 2-5pm",null,"Appointments Only"]
[null,"Respiratory Nurse Led Clinic",null,"Tuesday 1 -5pm and Wednesday 9am -1pm"]
[null,"Long Tem Oxygen Clinic",null,"Thursday 9am - 12.30pm"]
[null,"Long Term Oxygen/NIV/Sleep Apnoea Clini",null,"Monday 9am - 12.30pm"]
[null,"Rapid Access Clinic",null,"Thursday 9am - 12.30pm and 2-5pm"]
[null,"Nurse Specialist ",{"$f":"\"+44 1624 650059\"","v":"+44 1624 650059"},null,null,"Via Telephone"]
["Renal Unit",null,{"$f":"\"+44 1624\"","v":"+44 1624"}]
["Electro Enephalo Gram (ECG)",null,"+44 1624"]
[null,null,"+44 1624"]
["Audiology (hearing)",null,"+44 1624"]
["Dermatology (skin)",null,"+44 1624"]
["Ear, Nose and Throat (ENT)",null,"+44 1624"]
["Fracture/Plaster Clinic",null,"+44 1624"]
["Maxillofacial/Oral Surgery and Orthodontics",null,"+44 1624"]
["Orthopedic and Fracture",null,"+44 1624"]
[null,null,"+44 1624"]
["Paediatrics",null,{"$f":"\"+44 1624 650310\"","v":"+44 1624 650310"}]
["Gynaecology (Women's Health)",null,"+44 1624"]
["Inpatient Admissions"]
["Ward 1 - Male Surgical",null,"+44 1624"]
["Ward 2 - Female Surgical",null,"+44 1624"]
["Ward 3 - Children's Ward",null,"+44 1624"]
["Ward 4 - Gynaecology Ward",null,"+44 1624"]
["Ward 5 - Acute Medical Ward",null,"+44 1624"]
["Ward 6 - Acute Medical Unit (AMU)",null,"+44 1624"]
["Ward 7 - Stroke and TIA",null,"+44 1624"]
["Oncology",null,"+44 1624"]
["Ward 8 - Acute Medical Ward",null,"+44 1624"]
["Ward 9 - Acute Medical Ward",null,"+44 1624"]
["Ward 10 - Jane Crookall Maternity Unit",null,"+44 1624"]
["Ward 11 - Trauma Ward",null,"+44 1624"]
["Ward 12 - Orthopaedic Ward",null,"+44 1624"]
["Ward 14 - Day Procedures Suite",null,"+44 1624"]
["Ward 16 - Neonatal ",null,"+44 1624"]
["Ward 17 - Intensive Care Unit (ICU)",null,"+44 1624"]
["Ward 18 - Coronary Care Unit (CCU)",null,"+44 1624"]
["Ward 19 - Private Patients",null,"+44 1624"]
["Other Services"]
["Macmillan cancer Information & Support"]
["Hospice"]
["Nobles Pharmacy"]
["Interpreter Services"]
["Chapel Services"]
["Thie Bee Coffee Shop"]
["Other Useful Information"]
["Getting to Hosiptal"]
["Hospital Staff"]
["Useful Numbers"]

{"sheet":"Ramsey Cottage Hosipital","index":3,"n_rows":16,"n_cols":7,"rows_kept":16,"cut":false,"hidden":true,"merged":[[6,0,6,1]]}
["Ramsey & District Cottage Hospital"]
[]
["Cumberland Road"]
["Ramsey"]
["Isle of Man"]
["IM8 3RH"]
["Telephone:+44 1624 811811 (general enquiries 24 hour line)"]
["Fax:+44 1624 811818"]
["Email: ramseycottagehospital.dh@gov.im"]
["Web Link"]
[]
[]
[]
[]
[]
["Service Area","What services we can provide","Contact","Opening Times","Any services we don't provide","Other Information","Gov.im website link"]

{"sheet":"Emergency Services","index":4,"n_rows":2,"n_cols":4,"rows_kept":2,"cut":false,"hidden":false,"merged":[]}
[]
[null,null,null,"Emergency Services"]

{"sheet":"Hospitals","index":5,"n_rows":2,"n_cols":2,"rows_kept":2,"cut":false,"hidden":false,"merged":[]}
[]
[null,"    Hospitals"]

{"sheet":"Noble's Hospital","index":6,"n_rows":1307,"n_cols":22,"rows_kept":1307,"cut":false,"hidden":false,"merged":[]}
[]
[null,null,null,"Noble's Hospital"]
[]
[]
[]
[]
[]
[]
[]
[]
[]
[]
[]
[]
[]
[]
[]
[]
[]
[]
[]
[]
[]
[]
[]
[]
[]
[]
[]
[]
[]
[]
[]
[]
[]
[]
[]
[]
[]
[]
[]
[]
[]
[]
[]
[]
[]
[]
[]
[]
[]
[]
[]
[]
[]
[]
[]
[]
[]
[]
[]
[]
[]
[]
[]
[]
[]
[]
[]
[]
[]
[]
[]
[]
[]
[]
[]
[]
[]
[]
[null,null,null,"Service Area",null,null,null,null,null,null,"Contact",null,null,null,"Web Link"]
[]
[null,null,null,"Anticoagulation Clinic",null,null,null,null,null,null,"Tel: +44 1624 650643\n"]
[null,null,null,"Audiology (hearing)",null,null,null,null,null,null,"Tel: +44 1624 650407\n"]
[null,null,null,"Blood Clinic",null,null,null,null,null,null,"Tel: +44 1624 650415\n"]
[null,null,null,"Cardiac Services",null,null,null,null,null,null,"Tel: +44 1624 650117\n"]
[null,null,null,"Diabetes Centre",null,null,null,null,null,null,"Tel: +44 1624 650866\n"]
[null,null,null,"Fracture/Plaster Clinic",null,null,null,null,null,null,"Tel: +44 1624 650381"]
[null,null,null,"Gastroenterology ",null,null,null,null,null,null,"Tel: +44 1624 651194\n"]
[null,null,null,"Genito Urinary Medicine (GUM)",null,null,null,null,null,null,"Tel: +44 1624 650710\n"]
[null,null,null,"Gynaecology (women's health)",null,null,null,null,null,null,"Tel: +44 1624 650914\n"]
[null,null,null,"Heart Failure Service",null,null,null,null,null,null,"Tel: +44 1624 650148\n"]
[null,null,null,"Maxillofacial/Oral Surgery and Orthodontics"]
[null,null,null,"Neurology Service",null,null,null,null,null,null,"Tel: +44 1624 650421\n",null,null,null,null,null,null,null,null,null,"emergency "]
[null,null,null,"Nutrition and Dietetics",null,null,null,null,null,null,"Tel: +44 1624 650865",null,null,null,null,null,null,null,null,null,"Air Ambulance"]
[null,null,null,"Occupational Therapy",null,null,null,null,null,null,"Tel: +44 1624 642332\n",null,null,null,null,null,null,null,null,null,"patient transfers?"]
[null,null,null,"Oncology Service",null,null,null,null,null,null,"Tel: +44 1624 650162\n",null,null,null,null,null,null,null,null,null,"ambulance"]
[null,null,null,"Outpatient Physiotherapy",null,null,null,null,null,null,"Tel: +44 1624 642158\n",null,null,null,null,null,null,null,null,null,"a&e"]
[null,null,null,"Paediatrics (Children)",null,null,null,null,null,null,null,null,null,null,null,null,null,null,null,null,"meds"]
[null,null,null,"Radiology Services",null,null,null,null,null,null,"Tel: +44 1624 650100\n"]
[null,null,null,"Renal Unit",null,null,null,null,null,null,"Tel: +44 1624 650171"]
[null,null,null,"Respiratory Services",null,null,null,null,null,null,"Tel: +44 1624 650103\n"]
[null,null,null,"Rheumatology Services",null,null,null,null,null,null,"Tel: +44 1624 650103\n"]
[null,null,null,"Stroke Specialist Service",null,null,null,null,null,null,"Tel: +44 1624 650953\n"]
[]
[]
[null,null,null,"Specialist Services"]
[null,null,null,"Haematology Specialist Service ",null,null,null,null,null,null,"Tel: +44 1624 650176\n"]
[null,null,null,"Lung Cancer Specialist Service",null,null,null,null,null,null,"Tel: +44 1624 650086\n"]
[null,null,null,"Rheumatology Specialist Service",null,null,null,null,null,null,"Tel: +44 1624 650103\n"]
[null,null,null,null,null,null,null,null,null,null,null,null,null,null,null,null,null,"many other outpatient clinics"]
[]
[null,null,null,"Outpatient Appointments Reception",null,null,null,null,null,null,"Tel: +44 1624 650103"]
[]
[]
[]
[]
[]
[]
[]
[]
[]
[]
[]
[]
[]
[]
[null,null,null,"Service Area",null,null,null,null,null,null,"Contact",null,null,null,"Web Link"]
[]
[null,null,null,"Ward 1 - Male Surgical",null,null,null,null,null,null,"Tel: +44 1624 650021"]
[null,null,null,"Ward 2 - Female Surgical",null,null,null,null,null,null,"Tel: +44 1624 650022"]
[null,null,null,"Ward 3 - Children's Ward",null,null,null,null,null,null,"Tel: +44 1624 650023"]
[null,null,null,"Ward 4 - Gynaecology Ward",null,null,null,null,null,null,"Tel: +44 1624 650024"]
[null,null,null,"Ward 5 - Acute Medical Ward",null,null,null,null,null,null,"Tel: +44 1624 650025"]
[null,null,null,"Ward 6 - Acute Medical unit (AMU)",null,null,null,null,null,null,"Tel: +44 1624 650026"]
[null,null,null,"Ward 7 - Stroke and TIA",null,null,null,null,null,null,"Tel: +44 1624 650027 "]
[null,null,null,"Ward 8 - Acute Medical Ward",null,null,null,null,null,null,"Tel: +44 1624 650028"]
[null,null,null,"Ward 9 - Acute Medical Ward",null,null,null,null,null,null,"Tel: +44 1624 650029"]
[null,null,null,"Ward 10 - Jane Crookall Maternity Unit ",null,null,null,null,null,null,"Tel: +44 1624 650030"]
[null,null,null,"Ward 11 - Trauma Ward",null,null,null,null,null,null,"Tel: +44 1624 650031"]
[null,null,null,"Ward 12 - Orthopaedic Ward",null,null,null,null,null,null,"Tel: +44 1624 650032"]
[null,null,null,"Ward 14 - Day Procedures Suite",null,null,null,null,null,null,"Tel: +44 1624 650033"]
[null,null,null,"Ward 16 - Neonatal",null,null,null,null,null,null,"Tel: +44 1624 650035"]
[null,null,null,"Ward 17 - Intensive Care Unit (ICU)",null,null,null,null,null,null,"Tel: +44 1624 650036"]
[null,null,null,"Ward 18 - Coronary Care Unit",null,null,null,null,null,null,"Tel: +44 1624 650037"]
[null,null,null,"Ward 19 - Private Patients",null,null,null,null,null,null,"Tel: +44 1624 650038"]
[]
[null,null,null,"Endoscopy Unit",null,null,null,null,null,null,"Tel: +44 1624 650194\n"]
[]
[null,null,null,"Falls & Fragility Service ",null,null,null,null,null,null,"Tel: +44 1624 650912\n"]
[]
[]
[]
[]
[]
[]
[]
[]
[]
[]
[]
[]
[]
[]
[]
[null,null,null,"Service Area",null,null,null,null,null,null,"Contact",null,null,null,"Web Link"]
[]
[]
[]
[null,null,null,"Pathology Services",null,null,null,null,null,null,"Tel: +44 1624 650415"]
[null,null,null,"Nobles Pharmacy",null,null,null,null,null,null,"Tel: +44 1624 650823"]
[]
[]
[]
[]
[]
[null,null,null,"Patient Transfers",null,null,null,null,null,null,"Tel: +44 1624 642673"]
[]
[null,null,null,"Chapel Services"]
[null,null,null,"Thie Bee Coffee Shop"]
[]
[null,null,null,"Hospice",null,null,null,null,null,null,"Tel: +44 1624 647400"]
[null,null,null,"MacMillan Cancer Information & Support",null,null,null,null,null,null,"Tel: +44 1624 650735"]
[]
[]
[]
[]
[]
[]
[]
[]
[]
[]
[]
[]
[]
[]
[]
[]
[]
[]
[null,null,null,null,null,null,null,null,null,null,null,null,null,null,"Web link:"]
[]
[]
[]
[]
[]
[]
[]
[]
[]
[]
[]
[]
[]
[]
[]
[]
[]
[]
[]
[]
[]
[]
[]
[]
[]
[]
[]
[]
[]
[]
[]
[]
[]
[]
[]
[]
[]
[]
[]
[]
[]
[]
[]
[]
[null,null,null,null,null,null,null,null,null,null,null,null,null,null,"Web Link:"]
[]
[]
[]
[]
[]
[]
[]
[]
[]
[]
[]
[]
[]
[]
[]
[]
[]
[]
[]
[]
[]
[]
[]
[]
[]
[]
[]
[]
[]
[]
[null,null,null,null,null,null,null,null,null,null,null,null,null,null,"Web Link:"]
[]
[]
[]
[]
[]
[]
[]
[]
[]
[]
[]
[]
[]
[]
[]
[]
[]
[]
[]
[]
[]
[]
[]
[]
[]
[]
[]
[]
[]
[]
[]
[]
[]
[]
[]
[]
[]
[]
[]
[]
[null,null,null,null,null,null,null,null,null,null,"Web Link:"]
[]
[]
[]
[]
[]
[]
[]
[]
[]
[]
[]
[]
[]
[]
[]
[]
[]
[]
[]
[]
[]
[]
[]
[]
[]
[]
[]
[]
[]
[]
[]
[]
[]
[]
[]
[]
[]
[]
[]
[]
[]
[]
[]
[]
[null,null,null,null,null,null,null,null,null,null,"Web Link:"]
[]
[]
[]
[]
[]
[]
[]
[]
[]
[]
[]
[]
[]
[]
[]
[]
[]
[]
[]
[]
[]
[]
[]
[]
[]
[]
[]
[]
[]
[]
[]
[]
[]
[]
[]
[]
[null,null,null,null,null,null,null,null,null,null,"Web Link:"]
[]
[]
[]
[]
[]
[]
[]
[]
[]
[]
[]
[]
[]
[]
[]
[]
[]
[]
[]
[]
[]
[]
[]
[]
[]
[]
[]
[]
[]
[]
[]
[]
[]
[]
[]
[]
[]
[]
[]
[]
[null,null,null,null,null,null,null,null,null,null,"Web Link:"]
[]
[]
[]
[]
[]
[]
[]
[]
[]
[]
[]
[]
[]
[]
[]
[]
[]
[]
[]
[]
[]
[]
[]
[]
[]
[]
[]
[]
[]
[]
[]
[]
[]
[]
[]
[]
[]
[null,null,null,null,null,null,null,null,null,null,"Web Link"]
[]
[]
[]
[]
[null,null,null,null,null,null,null,null,null,null,null,null,null,null,null,null,null,null,null,"lung"]
[]
[]
[]
[]
[]
[]
[]
[]
[]
[]
[]
[]
[]
[]
[]
[]
[]
[]
[]
[null,null,null,null,null,null,null,null,null,null,"Web Link"]
[]
[]
[]
[]
[]
[]
[]
[]
[]
[]
[]
[]
[]
[]
[]
[]
[]
[]
[]
[]
[]
[]
[]
[]
[]
[]
[]
[]
[]
[]
[]
[]
[]
[]
[]
[]
[]
[]
[]
[]
[]
[]
[]
[]
[]
[]
[]
[]
[]
[null,null,null,null,null,null,null,null,null,null,"Web Link"]
[]
[]
[]
[]
[]
[]
[]
[]
[]
[]
[]
[]
[]
[]
[]
[]
[]
[]
[]
[]
[]
[]
[]
[]
[]
[]
[]
[]
[]
[null,null,null,null,null,null,null,null,null,null,"Web Link"]
[]
[]
[]
[]
[]
[null,null,null,null,null,null,null,null,null,null,null,null,null,null,null,null,null,"Clinic","Hospital","Clinics","Day and times","Staff"]
[null,null,null,null,null,null,null,null,null,null,null,null,null,null,null,null,null,"General Respiratory","Nobles","2 clinics weekly","Tuesday 2-5pm","Consultant/Staff grade physician/trainee"]
[null,null,null,null,null,null,null,null,null,null,null,null,null,null,null,null,null,null,null,null,"Wednesday 2-5pm"]
[null,null,null,null,null,null,null,null,null,null,null,null,null,null,null,null,null,"Respiratory Nurse led","Nobles","3 clinics weekly","Tuesday 1-5pm","Respiratory Nurse Specialist"]
[null,null,null,null,null,null,null,null,null,null,null,null,null,null,null,null,null,null,null,null,"Wednesday 1-5pm"]
[null,null,null,null,null,null,null,null,null,null,null,null,null,null,null,null,null,null,null,null,"Thursday 9- 1pm"]
[null,null,null,null,null,null,null,null,null,null,null,null,null,null,null,null,null,"Long Term Oxygen","Nobles","1 clinic fortnightly","Thursday 9am- 12.30pm","Consultant/Staff Grade"]
[null,null,null,null,null,null,null,null,null,null,null,null,null,null,null,null,null,"Long term oxygen/NIV/Sleep apnoea","Nobles","1 clinic weekly","Monday 9am- 12.30pm","Respiratory Physiotherapist"]
[null,null,null,null,null,null,null,null,null,null,null,null,null,null,null,null,null,"Rapid Access","Nobles","1 clinic weekly","Monday 9am-12.30pm","Consultant/Staff Grade"]
[null,null,null,null,null,null,null,null,null,null,null,null,null,null,null,null,null,"General Respiratory","Ramsey","2 clinics fortnightly","Thursday 9am -12.30pm","Staff Grade"]
[]
[]
[]
[]
[]
[]
[]
[]
[]
[]
[]
[]
[]
[]
[]
[]
[]
[]
[]
[]
[]
[]
[]
[]
[]
[]
[]
[]
[]
[]
[]
[]
[]
[]
[]
[]
[]
[]
[]
[]
[]
[]
[]
[]
[]
[]
[]
[]
[]
[]
[]
[]
[]
[]
[null,null,null,null,null,null,null,null,null,null,"Web Link "]
[]
[]
[]
[]
[]
[]
[]
[]
[]
[]
[]
[]
[]
[]
[]
[]
[]
[]
[]
[]
[]
[]
[]
[]
[]
[]
[]
[]
[null,null,null,null,null,null,null,null,null,null,"Web Link"]
[]
[]
[]
[]
[]
[]
[]
[]
[]
[]
[]
[]
[]
[]
[]
[]
[]
[]
[]
[]
[]
[]
[]
[]
[]
[]
[]
[]
[null,null,null,null,null,null,null,null,null,null,"Web Link"]
[]
[]
[]
[]
[]
[]
[]
[]
[]
[]
[]
[]
[]
[]
[]
[]
[]
[]
[]
[]
[]
[]
[]
[]
[]
[]
[]
[]
[]
[]
[]
[]
[]
[]
[]
[]
[]
[]
[]
[]
[]
[]
[]
[]
[]
[]
[]
[]
[]
[]
[]
[]
[]
[]
[]
[]
[]
[]
[]
[]
[]
[]
[]
[]
[]
[]
[]
[]
[]
[]
[]
[]
[]
[]
[]
[]
[]
[]
[]
[]
[]
[]
[]
[]
[]
[]
[]
[]
[]
[]
[]
[]
[]
[]
[]
[]
[]
[]
[]
[]
[]
[]
[]
[]
[]
[]
[]
[]
[]
[]
[]
[]
[null,null,null,null,null,null,null,null,null,null,"Web Link"]
[]
[]
[]
[]
[]
[]
[]
[]
[]
[]
[]
[]
[]
[]
[]
[]
[]
[]
[]
[]
[]
[]
[]
[]
[]
[]
[]
[]
[]
[]
[]
[]
[]
[]
[]
[]
[]
[]
[]
[]
[]
[]
[]
[]
[]
[]
[]
[]
[]
[]
[]
[]
[]
[]
[]
[]
[]
[]
[]
[]
[]
[]
[]
[]
[]
[]
[]
[]
[]
[]
[]
[]
[]
[]
[]
[]
[]
[]
[]
[]
[]
[]
[]
[]
[]
[]
[]
[]
[]
[]
[]
[]
[]
[]
[]
[]
[]
[]
[]
[]
[]
[]
[]
[]
[]
[]
[]
[]
[]
[]
[]
[]
[]
[]
[]
[]
[]
[]
[]
[]
[]
[]
[]
[]
[]
[]
[]
[]
[]
[]
[]
[]
[]
[]
[]
[]
[]
[]
[]
[]
[]
[null,null,null,null,null,null,null,null,null,null,"Web Link"]
[]
[]
[]
[]
[]
[]
[]
[]
[]
[]
[]
[]
[]
[]
[]
[]
[]
[]
[]
[]
[null,null,null,null,null,null,null,null,null,null,"Web Link"]
[]
[]
[]
[]
[]
[]
[]
[]
[]
[]
[]
[]
[]
[]
[]
[]
[]
[]
[]
[]
[]
[null,null,null,null,null,null,null,null,null,null,"Web Link"]
[]
[]
[]
[]
[]
[]
[]
[]
[]
[]
[]
[]
[]
[]
[]
[]
[]
[]
[]
[null,null,null,null,null,null,null,null,null,null,"Web Link"]
[]
[]
[]
[]
[]
[]
[]
[]
[]
[]
[]
[]
[]
[]
[]
[]
[]
[]
[]
[]
[]
[]
[]
[]
[]
[]
[]
[]
[]
[]
[null,null,"Noble's - Ward 5, 8 & 9 - Medical ",null,null,null,null,null,null,null,"Web Link"]
[]
[]
[]
[]
[]
[]
[]
[]
[]
[]
[]
[]
[]
[]
[]
[]
[]
[]
[null,null,null,null,null,null,null,null,null,null,"Web Link"]
[]
[]
[]
[]
[]
[]
[]
[]
[]
[]
[]
[]
[]
[]
[]
[]
[]
[]
[]
[]
[]
[]
[]
[null,null,null,null,null,null,null,null,null,null,"Web Link"]
[]
[]
[]
[]
[]
[]
[]
[]
[]
[]
[]
[]
[]
[]
[]
[]
[null,null,null,null,null,null,null,null,null,null,"Web Link"]
[]
[]
[]
[]
[]
[]
[]
[]
[]
[]
[]
[]
[]
[]
[]
[]
[]
[]
[]
[]
[]
[]
[]
[]
[]
[]
[]
[]
[]
[]
[]
[]
[]
[]
[]
[]
[]
[]
[]
[]
[]
[]
[]
[]
[]
[]
[]
[]
[]
[]
[]
[]
[]
[]
[]
[]
[]
[]
[]
[]
[]
[]
[]
[null,null,null,null,null,null,null,null,null,null,"Web Link"]
[]
[]
[]
[]
[]
[]
[]
[]
[]
[]
[]
[]
[]
[]
[]
[]
[]
[null,null,null,null,null,null,null,null,null,null,"Web Link"]
[]
[]
[]
[]
[]
[]
[]
[]
[]
[]
[]
[]
[]
[]
[]
[]
[]
[]
[]
[null,null,null,null,null,null,null,null,null,null,"Web Link"]
[]
[]
[]
[]
[]
[]
[]
[]
[]
[]
[]
[]
[]
[]
[]
[]
[]
[]
[]
[null,null,null,null,null,null,null,null,null,null,"Web Link"]
[]
[]
[]
[]
[]
[]
[]
[]
[]
[]
[]
[]
[]
[]
[]
[]
[]
[]
[]
[null,null,null,null,null,null,null,null,null,null,"Web Link"]
[]
[]
[]
[]
[]
[]
[]
[]
[]
[]
[]
[]
[]
[]
[]
[]
[]
[]
[]
[]
[]
[null,null,null,null,null,null,null,null,null,null,"Web Link"]
[]
[]
[]
[]
[]
[]
[]
[]
[]
[]
[]
[]
[]
[]
[]
[]
[]
[]
[]
[]
[null,null,null,null,null,null,null,null,null,null,"Web Link"]

{"sheet":"Ramsey Cottage Hospital","index":7,"n_rows":335,"n_cols":16,"rows_kept":335,"cut":false,"hidden":false,"merged":[]}
[]
[null,null,null,"Ramsey & District Cottage Hospital"]
[]
[]
[]
[]
[]
[]
[]
[]
[]
[]
[]
[]
[]
[]
[]
[]
[]
[]
[]
[]
[]
[]
[]
[]
[]
[]
[]
[]
[]
[]
[]
[]
[]
[]
[]
[]
[]
[]
[]
[]
[]
[]
[]
[]
[]
[]
[]
[]
[]
[]
[]
[]
[]
[]
[]
[]
[]
[]
[]
[]
[null,null,null,null,null,null,null,null,null,null,null,null,null,null,null,"Web Link"]
[]
[]
[]
[]
[]
[]
[]
[]
[]
[]
[]
[]
[]
[]
[]
[]
[]
[]
[]
[]
[]
[]
[]
[]
[]
[]
[]
[]
[]
[null,null,null,null,null,null,null,null,null,null,null,null,null,null,null,"Web Link"]
[]
[]
[]
[]
[]
[]
[]
[]
[]
[]
[]
[]
[]
[]
[]
[]
[]
[]
[]
[]
[]
[]
[]
[]
[]
[]
[]
[]
[]
[]
[]
[]
[]
[]
[]
[]
[]
[]
[]
[]
[]
[]
[]
[]
[]
[]
[]
[]
[]
[]
[]
[]
[null,null,null,null,null,null,null,null,null,null,null,null,null,null,null,"Web Link"]
[]
[]
[]
[]
[]
[]
[]
[]
[]
[]
[]
[]
[]
[]
[]
[]
[]
[]
[]
[]
[]
[]
[]
[]
[]
[null,null,null,null,null,null,null,null,null,null,null,null,null,null,null,"Web Link"]
[]
[]
[]
[]
[]
[]
[]
[]
[]
[]
[]
[]
[]
[]
[]
[]
[]
[]
[]
[null,null,null,null,null,null,null,null,null,null,null,null,null,null,null,"Web Link"]
[]
[]
[]
[]
[]
[]
[]
[]
[]
[]
[]
[]
[]
[]
[]
[]
[]
[]
[null,null,null,null,null,null,null,null,null,null,null,null,null,null,null,"Web link"]
[]
[]
[]
[]
[]
[]
[]
[]
[]
[]
[]
[]
[]
[]
[]
[]
[]
[]
[]
[]
[]
[]
[]
[]
[]
[null,null,null,null,null,null,null,null,null,null,null,null,null,null,null,"Web Link"]
[]
[]
[]
[]
[]
[]
[]
[]
[]
[]
[]
[]
[]
[]
[]
[]
[]
[]
[]
[]
[]
[]
[null,null,null,null,null,null,null,null,null,null,null,null,null,null,null,"Web Link"]
[]
[]
[]
[]
[]
[]
[]
[]
[]
[]
[]
[]
[]
[]
[]
[]
[]
[]
[]
[]
[]
[]
[null,null,null,null,null,null,null,null,null,null,null,null,null,null,null,"Web Link"]
[]
[]
[]
[]
[]
[]
[]
[]
[]
[]
[]
[]
[]
[]
[]
[]
[]
[]
[]
[]
[]
[]
[]
[]
[]
[]
[]
[]
[null,null,null,null,null,null,null,null,null,null,null,null,null,null,null,"Web Link"]
[]
[]
[]
[]
[]
[]
[]
[]
[]
[]
[]
[]
[]
[]
[]
[]
[]
[]
[]
[]
[]
[]
[null,null,null,null,null,null,null,null,null,null,null,null,null,null,null,"Web Link"]

{"sheet":"Doctors","index":8,"n_rows":2,"n_cols":4,"rows_kept":2,"cut":false,"hidden":false,"merged":[]}
[]
[null,null,null,"Doctors"]

{"sheet":"Dentists","index":9,"n_rows":17,"n_cols":22,"rows_kept":17,"cut":false,"hidden":false,"merged":[]}
[]
[null,null,null,"Dentists"]
[]
[]
[]
[]
[]
[]
[]
[]
[]
[]
[]
[]
[]
[]
[null,null,null,null,null,null,null,null,null,null,null,null,null,null,null,null,null,null,null,null,null,"Web Link"]

{"sheet":"Pharmacy","index":10,"n_rows":58,"n_cols":18,"rows_kept":58,"cut":false,"hidden":false,"merged":[]}
[]
[null,null,null,"Pharmacies"]
[]
[]
[]
[]
[]
[]
[]
[]
[]
[]
[]
[]
[]
[]
[]
[]
[]
[]
[]
[]
[]
[]
[]
[]
[]
[]
[]
[]
[]
[]
[]
[]
[]
[]
[]
[]
[]
[]
[]
[]
[]
[]
[]
[]
[]
[]
[]
[]
[]
[]
[]
[]
[]
[]
[]
[null,null,null,null,null,null,null,null,null,null,null,null,null,null,null,null,null,"Click here for Pharmacy Rota"]

{"sheet":"Opticians","index":11,"n_rows":2,"n_cols":3,"rows_kept":2,"cut":false,"hidden":false,"merged":[]}
[]
[null,null,"Opticians"]

{"sheet":"Audiology","index":12,"n_rows":98,"n_cols":16,"rows_kept":98,"cut":false,"hidden":false,"merged":[]}
[]
[null,null,null,"Audiology"]
[]
[]
[]
[]
[]
[]
[]
[]
[]
[]
[]
[]
[]
[]
[]
[]
[]
[]
[]
[]
[]
[]
[]
[]
[]
[]
[]
[]
[]
[]
[]
[]
[]
[]
[]
[]
[]
[]
[]
[]
[]
[]
[]
[]
[]
[]
[]
[]
[]
[]
[]
[]
[]
[]
[]
[]
[]
[]
[]
[]
[]
[]
[]
[]
[]
[]
[]
[]
[]
[]
[]
[]
[]
[]
[]
[]
[]
[]
[]
[]
[]
[]
[]
[]
[]
[]
[]
[]
[]
[]
[]
[]
[]
[]
[]
[null,null,null,null,null,null,null,null,null,null,null,null,null,null,null,"Please click here for a list of drop in clinics"]

{"sheet":"Mental Health","index":13,"n_rows":5,"n_cols":18,"rows_kept":5,"cut":false,"hidden":false,"merged":[]}
[]
[null,null,null,"Mental Health"]
[]
[]
[null,null,null,null,null,null,null,null,null,null,null,null,null,null,null,null,null,"include adult protection"]

{"sheet":"Sexual Health","index":14,"n_rows":2,"n_cols":4,"rows_kept":2,"cut":false,"hidden":false,"merged":[]}
[]
[null,null,null,"Sexual Health"]

{"sheet":"Family Planning & Pregnancy","index":15,"n_rows":140,"n_cols":11,"rows_kept":140,"cut":false,"hidden":false,"merged":[]}
[]
[null,null,null,"Family Planning & Pregnancy"]
[]
[]
[]
[]
[]
[]
[]
[]
[]
[]
[]
[]
[]
[]
[]
[]
[]
[]
[]
[]
[]
[]
[]
[]
[]
[]
[]
[]
[]
[]
[]
[]
[]
[]
[]
[]
[]
[]
[]
[]
[]
[]
[]
[]
[]
[]
[]
[]
[]
[]
[]
[]
[]
[]
[]
[]
[]
[]
[]
[]
[]
[]
[]
[]
[]
[]
[]
[]
[]
[]
[]
[]
[]
[]
[]
[]
[]
[]
[]
[]
[]
[]
[]
[]
[]
[]
[]
[]
[]
[]
[]
[]
[]
[]
[]
[]
[]
[]
[]
[]
[]
[]
[]
[]
[]
[]
[]
[]
[]
[]
[]
[]
[]
[]
[]
[]
[null,null,null,null,null,null,null,null,null,null,"Web Link"]
[]
[]
[]
[]
[]
[]
[]
[]
[]
[]
[]
[]
[]
[]
[]
[]
[]
[]
[]
[]
[null,null,null,null,null,null,null,null,null,null,"Web Link"]

{"sheet":"Therapy Services","index":16,"n_rows":3,"n_cols":4,"rows_kept":3,"cut":false,"hidden":false,"merged":[]}
[]
[]
[null,null,null,"Therapies"]

{"sheet":"Speach & Language Therapy","index":17,"n_rows":2,"n_cols":4,"rows_kept":2,"cut":false,"hidden":false,"merged":[]}
[]
[null,null,null,"Speech and Language Therapy"]

{"sheet":"Children and Family","index":18,"n_rows":23,"n_cols":3,"rows_kept":23,"cut":false,"hidden":false,"merged":[]}
[]
[null,null,"Children and Family"]
[]
[]
[]
[]
[]
[]
[]
[]
[]
[]
[]
[]
[]
[]
[]
[]
[]
[]
[]
[]
[null,null,"Links to other Services areas:"]

{"sheet":"Services for Older People","index":19,"n_rows":387,"n_cols":17,"rows_kept":387,"cut":false,"hidden":false,"merged":[]}
[]
[null,null,null,"Services for Older People"]
[]
[]
[]
[]
[]
[]
[]
[]
[]
[]
[]
[]
[]
[]
[]
[]
[]
[]
[]
[]
[]
[]
[]
[]
[]
[]
[]
[]
[]
[]
[]
[]
[]
[]
[]
[]
[]
[]
[]
[]
[]
[]
[]
[]
[]
[]
[]
[]
[]
[]
[]
[null,null,null,null,null,null,null,null,null,null,null,null,null,null,null,null,"Web Link"]
[]
[]
[]
[]
[]
[]
[]
[]
[]
[]
[]
[]
[]
[]
[]
[]
[]
[]
[]
[]
[]
[]
[]
[]
[]
[]
[]
[]
[]
[]
[]
[]
[]
[null,null,null,null,null,null,null,null,null,null,null,null,null,null,null,null,"Web Link"]
[]
[]
[]
[]
[]
[]
[]
[]
[]
[]
[]
[]
[]
[]
[]
[]
[]
[]
[]
[]
[]
[]
[]
[]
[]
[]
[]
[]
[]
[]
[]
[]
[]
[]
[]
[]
[]
[]
[]
[]
[]
[]
[]
[]
[]
[]
[]
[]
[]
[]
[]
[]
[]
[]
[]
[]
[]
[]
[]
[]
[]
[]
[]
[]
[]
[]
[]
[]
[]
[]
[]
[]
[]
[]
[]
[]
[]
[]
[]
[]
[]
[]
[]
[]
[]
[]
[]
[]
[]
[]
[]
[]
[]
[]
[]
[]
[]
[]
[]
[]
[]
[]
[]
[]
[]
[]
[]
[]
[]
[]
[]
[null,null,null,null,null,null,null,null,null,null,null,null,null,null,null,null,"Web Link"]
[]
[]
[]
[]
[]
[]
[]
[]
[]
[]
[]
[]
[]
[]
[]
[]
[]
[]
[]
[]
[]
[]
[]
[]
[]
[]
[]
[]
[]
[]
[]
[]
[]
[]
[]
[]
[]
[]
[]
[]
[]
[]
[]
[]
[]
[]
[]
[]
[]
[]
[]
[]
[]
[]
[]
[]
[]
[]
[]
[]
[]
[]
[]
[]
[]
[]
[]
[]
[]
[]
[]
[]
[]
[]
[]
[]
[]
[]
[]
[]
[]
[null,null,null,null,null,null,null,null,null,null,null,null,null,null,null,null,"Web Link"]
[]
[]
[]
[]
[]
[]
[]
[]
[]
[]
[]
[]
[]
[]
[]
[]
[]
[]
[]
[]
[]
[]
[]
[]
[]
[]
[]
[]
[]
[]
[]
[]
[]
[]
[]
[]
[]
[]
[]
[]
[]
[]
[]
[]
[]
[]
[]
[]
[]
[]
[]
[]
[]
[]
[]
[]
[]
[]
[]
[]
[]
[]
[]
[]
[]
[]
[]
[]
[]
[]
[]
[]
[]
[]
[]
[]
[]
[]
[]
[]
[]
[]
[]
[]
[]
[]
[]
[]
[]
[]
[]
[]
[]
[]
[]
[]
[]
[]
[]
[]
[]
[]
[]
[]
[null,null,null,null,null,null,null,null,null,null,null,null,null,null,null,null,"Web Link"]

{"sheet":"Learning Disability Service ","index":20,"n_rows":264,"n_cols":19,"rows_kept":264,"cut":false,"hidden":false,"merged":[]}
[]
[null,null,null," Learning Disabilities"]
[]
[]
[]
[]
[]
[]
[]
[]
[]
[]
[null,null,null,null,null,null,null,null,null,null,null,null,null,null,null,null,null,null,"Web Link"]
[]
[]
[]
[]
[]
[]
[]
[]
[]
[]
[]
[]
[]
[]
[]
[]
[]
[]
[]
[]
[]
[]
[]
[]
[]
[]
[]
[]
[]
[]
[]
[]
[]
[]
[]
[]
[]
[]
[]
[]
[]
[]
[]
[]
[]
[]
[]
[null,null,null,null,null,null,null,null,null,null,null,null,null,null,null,null,null,"Web Link "]
[]
[]
[]
[]
[]
[]
[]
[]
[]
[]
[]
[]
[]
[]
[]
[]
[]
[]
[]
[]
[]
[]
[]
[]
[]
[]
[]
[]
[]
[]
[]
[]
[]
[]
[]
[]
[]
[]
[]
[]
[]
[]
[]
[]
[]
[]
[]
[]
[]
[]
[]
[null,null,null,null,null,null,null,null,null,null,null,null,null,null,null,"Web Link"]
[]
[]
[]
[]
[]
[]
[]
[]
[]
[]
[]
[]
[]
[]
[]
[]
[]
[]
[]
[]
[]
[]
[]
[]
[]
[]
[]
[]
[]
[]
[]
[]
[]
[]
[]
[]
[]
[]
[]
[]
[]
[]
[]
[null,null,null,null,null,null,null,null,null,null,null,null,null,null,null,"Web Link"]
[]
[]
[]
[]
[]
[]
[]
[]
[]
[]
[]
[]
[]
[]
[]
[]
[]
[]
[]
[]
[]
[]
[]
[]
[]
[]
[]
[]
[null,null,null,null,null,null,null,null,null,null,null,null,null,null,null,"Web Link"]
[]
[]
[]
[]
[]
[]
[]
[]
[]
[]
[]
[]
[]
[]
[]
[]
[]
[]
[]
[]
[]
[]
[]
[]
[]
[]
[]
[]
[]
[]
[]
[]
[]
[]
[]
[]
[]
[]
[]
[]
[]
[]
[]
[]
[]
[]
[]
[]
[]
[]
[]
[]
[]
[]
[]
[]
[]
[]
[]
[]
[]
[]
[]
[]
[]
[]
[]
[]
[]
[]
[]
[]
[]
[]
[]
[]
[]
[null,null,null,null,null,null,null,null,null,null,null,null,null,null,null,"Web Link"]

{"sheet":"Adult Social Care Support","index":21,"n_rows":99,"n_cols":17,"rows_kept":99,"cut":false,"hidden":false,"merged":[]}
[]
[null,null,null,"Adult Social Care"]
[]
[]
[]
[]
[]
[]
[]
[]
[]
[]
[]
[]
[]
[]
[]
[]
[]
[]
[]
[]
[]
[]
[]
[]
[]
[]
[]
[]
[]
[]
[]
[]
[]
[]
[]
[]
[]
[]
[]
[]
[]
[]
[]
[]
[]
[]
[]
[]
[]
[]
[]
[]
[]
[null,null,null,null,null,null,null,null,null,null,null,null,null,null,null,null,"Web Link"]
[]
[]
[]
[]
[]
[]
[]
[]
[]
[]
[]
[]
[]
[]
[]
[]
[]
[]
[]
[]
[]
[]
[]
[]
[]
[]
[]
[]
[]
[]
[]
[]
[]
[]
[]
[]
[]
[]
[]
[]
[]
[]
[null,null,null,null,null,null,null,null,null,null,null,null,null,null,null,null,"Web Link"]

{"sheet":"Care Services","index":22,"n_rows":3,"n_cols":4,"rows_kept":3,"cut":false,"hidden":true,"merged":[]}
[]
[]
[null,null,null,"Page Under Development"]

{"sheet":"Community","index":23,"n_rows":75,"n_cols":19,"rows_kept":75,"cut":false,"hidden":false,"merged":[]}
[]
[null,null,null,"Community Health"]
[]
[]
[]
[]
[]
[]
[]
[]
[]
[]
[]
[]
[null,null,null,null,null,null,null,null,null,null,null,null,null,null,null,null,null,null,"Web Link"]
[]
[]
[]
[]
[]
[]
[]
[]
[]
[]
[]
[]
[]
[]
[]
[]
[]
[]
[]
[]
[]
[]
[]
[]
[]
[]
[]
[]
[]
[]
[]
[]
[]
[]
[]
[]
[]
[]
[]
[]
[]
[]
[]
[]
[]
[]
[null,null,null,null,null,"link to Ramsey & District Cottage Hospital"]
[]
[]
[]
[]
[]
[]
[]
[]
[]
[]
[]
[]
[null,null,null,null,null,null,null,null,null,null,null,null,null,null,null,null,"Web Link"]

{"sheet":"Patient Transfers","index":24,"n_rows":2,"n_cols":4,"rows_kept":2,"cut":false,"hidden":false,"merged":[]}
[]
[null,null,null,"Patient Transfers"]

{"sheet":"Screening","index":25,"n_rows":2,"n_cols":5,"rows_kept":2,"cut":false,"hidden":false,"merged":[]}
[]
[null,null,null,null,"Cancer Screening"]